fUST/lending_fUST_20250530
["ID","MTS","AMOUNT","RATE_DAILY","PERIOD"]
[363149380,1748599850275,-430.0,0.00020547,2]
[363149381,1748599850285,-2321.09,0.00020547,2]
[363149382,1748599850294,-430.0,0.00020547,2]
[363149383,1748599850304,-430.0,0.00020547,2]
[363149384,1748599850314,-653.47,0.00020547,2]
[363149385,1748599850323,-646.21,0.00020547,2]
[363149386,1748599850332,-430.0,0.00020547,2]
[363149387,1748599850342,-1153.29,0.00020547,2]
[363149388,1748599850351,-430.0,0.00020547,2]
[363149389,1748599850361,-430.0,0.00020547,2]
[363149390,1748599850370,-170.0,0.00020547,2]
[363149391,1748599850380,-887.53,0.00020547,2]
[363149392,1748599850389,-5995.57,0.00020547,2]
[363149393,1748599850399,-1053.86,0.00020547,2]
[363149394,1748599850408,-430.0,0.00020547,2]
[363149395,1748599850418,-430.0,0.00020547,2]
[363149396,1748599850427,-310.93925255,0.00020547,2]
[363149397,1748599850437,-430.0,0.00020547,2]
[363149398,1748599850446,-430.0,0.00020547,2]
[363149399,1748599850455,-500.0,0.00020564,2]
[363149400,1748599850464,-357.7922574,0.0002059,3]
[363149401,1748599850473,-446.52346101,0.00020632,2]
[363149402,1748599850483,-357.7922574,0.00020762,3]
[363149403,1748599850492,-430.0,0.00020821,2]
[363149404,1748599850501,-625.44,0.00020821,2]
[363149405,1748599850511,-430.0,0.00020821,2]
[363149406,1748599850522,-439.0,0.00020821,2]
[363149407,1748599850531,-430.0,0.00020821,2]
[363149408,1748599850541,-430.0,0.00020821,2]
[363149409,1748599850550,-430.0,0.00020821,2]
[363149410,1748599850560,-430.0,0.00020821,2]
[363149411,1748599850569,-430.0,0.00020821,2]
[363149412,1748599850579,-1350.74,0.00020821,2]
[363149413,1748599850588,-430.0,0.00020821,2]
[363149414,1748599850597,-430.0,0.00020821,2]
[363149415,1748599850607,-430.0,0.00020821,2]
[363149416,1748599850616,-430.0,0.00020821,2]
[363149417,1748599850626,-1255.09,0.00020821,2]
[363149418,1748599850635,-1398.56,0.00020821,2]
[363149419,1748599850644,-430.0,0.00020821,2]
[363149420,1748599850653,-430.0,0.00020821,2]
[363149421,1748599850662,-442.67,0.00020821,2]
[363149423,1748599850671,-429.82535592,0.00020821,2]
[363149425,1748599850680,-430.0,0.00020821,2]
[363149427,1748599850689,-453.44,0.00020821,2]
[363149429,1748599850698,-4983.7,0.00020821,2]
[363149431,1748599850708,-907.89,0.00020821,2]
[363149433,1748599850717,-430.0,0.00020821,2]
[363149435,1748599850726,-430.0,0.00020821,2]
[363149437,1748599850735,-430.0,0.00020821,2]
[363149439,1748599850744,-6118.79,0.00020821,2]
[363149441,1748599850753,-175.65118638,0.00020821,2]
[363149443,1748599850762,-2375.79,0.00020821,2]
[363149444,1748599850775,-430.0,0.00020821,2]
[363149446,1748599850784,-1557.44,0.00020821,2]
[363149448,1748599850793,-1846.32,0.00020821,2]
[363149450,1748599850803,-430.0,0.00020821,2]
[363149452,1748599850812,-1005.88,0.00020821,2]
[363149454,1748599850821,-781.05,0.00020821,2]
[363149455,1748599850831,-7162.95,0.00020821,2]
[363149456,1748599850840,-430.0,0.00020821,2]
[363149457,1748599850850,-991.03,0.00020821,2]
[363149458,1748599850859,-1880.61,0.00020821,2]
[363149459,1748599850869,-430.0,0.00020821,2]
[363149460,1748599850878,-970.64,0.00020821,2]
[363149461,1748599850887,-430.0,0.00020821,2]
[363149462,1748599850897,-430.0,0.00020821,2]
[363149463,1748599850906,-430.0,0.00020821,2]
[363149464,1748599850916,-869.87,0.00020821,2]
[363149465,1748599850925,-430.0,0.00020821,2]
[363149466,1748599850934,-6904.29,0.00020821,2]
[363149467,1748599850944,-2282.62,0.00020821,2]
[363149468,1748599850953,-625.72,0.00020821,2]
[363149469,1748599850964,-430.0,0.00020821,2]
[363149470,1748599850973,-430.0,0.00020821,2]
[363149471,1748599850983,-514.63,0.00020821,2]
[363149472,1748599850992,-802.09,0.00020821,2]
[363149473,1748599851001,-1801.05,0.00020821,2]
[363149474,1748599851010,-430.0,0.00020821,2]
[363149475,1748599851021,-4916.12,0.00020821,2]
[363149477,1748599851030,-657.41,0.00020821,2]
[363149478,1748599851039,-430.0,0.00020821,2]
[363149479,1748599851049,-566.9,0.00020821,2]
[363149480,1748599851058,-430.0,0.00020821,2]
[363149481,1748599851067,-430.0,0.00020821,2]
[363149482,1748599851076,-6162.88,0.00020821,2]
[363149483,1748599851086,-430.0,0.00020821,2]
[363149484,1748599851095,-430.0,0.00020821,2]
[363149485,1748599851104,-625.42,0.00020821,2]
[363149486,1748599851113,-430.0,0.00020821,2]
[363149487,1748599851123,-430.0,0.00020821,2]
[363149488,1748599851132,-430.0,0.00020821,2]
[363149489,1748599851142,-430.0,0.00020821,2]
[363149490,1748599851151,-2321.09,0.00020821,2]
[363149491,1748599851160,-430.0,0.00020821,2]
[363149492,1748599851169,-228.9054431,0.00020821,2]
[363149493,1748599851179,-653.47,0.00020821,2]
[363149494,1748599851192,-646.21,0.00020821,2]
[363149495,1748599851202,-430.0,0.00020821,2]
[363149496,1748599851211,-1153.29,0.00020821,2]
[363149497,1748599851221,-430.0,0.00020821,2]
[363149498,1748599851231,-430.0,0.00020821,2]
[363149499,1748599851240,-887.53,0.00020821,2]
[363149500,1748599851250,-5995.57,0.00020821,2]
[363149501,1748599851259,-1053.86,0.00020821,2]
[363149502,1748599851273,-430.0,0.00020821,2]
[363149503,1748599851283,-430.0,0.00020821,2]
[363149504,1748599851293,-548.78912688,0.00020821,2]
[363149505,1748599851303,-357.7922574,0.00020934,4]
[363149506,1748599851312,-1086.74,0.00020986,2]
[363149507,1748599851322,-150.0,0.00021,2]
[363149508,1748599851331,-2220.2188822,0.00021095,3]
[363149509,1748599851340,-18616.94076111,0.00021095,2]
[363149510,1748599851350,-430.0,0.00021095,2]
[363149511,1748599851360,-625.44,0.00021095,2]
[363149512,1748599851370,-430.0,0.00021095,2]
[363149513,1748599851380,-439.0,0.00021095,2]
[363149514,1748599851389,-463.68643929,0.00021095,2]
[363149515,1748599851399,-430.0,0.00021095,2]
[363149516,1748599851409,-430.0,0.00021095,2]
[363149517,1748599851419,-430.0,0.00021095,2]
[363149518,1748599851428,-430.0,0.00021095,2]
[363149519,1748599851438,-1350.74,0.00021095,2]
[363149520,1748599851448,-430.0,0.00021095,2]
[363149521,1748599851458,-430.0,0.00021095,2]
[363149522,1748599851467,-430.0,0.00021095,2]
[363149523,1748599851476,-430.0,0.00021095,2]
[363149524,1748599851486,-1255.09,0.00021095,2]
[363149525,1748599851496,-1398.56,0.00021095,2]
[363149526,1748599851505,-430.0,0.00021095,2]
[363149527,1748599851515,-430.0,0.00021095,2]
[363149528,1748599851524,-442.67,0.00021095,2]
[363149529,1748599851534,-430.0,0.00021095,2]
[363149530,1748599851543,-453.44,0.00021095,2]
[363149531,1748599851553,-4983.7,0.00021095,2]
[363149532,1748599851563,-907.89,0.00021095,2]
[363149533,1748599851572,-310.0,0.00021095,2]
[363149534,1748599851582,-430.0,0.00021095,2]
[363149535,1748599851591,-430.0,0.00021095,2]
[363149536,1748599851601,-6118.79,0.00021095,2]
[363149537,1748599851611,-2375.79,0.00021095,2]
[363149538,1748599851621,-430.0,0.00021095,2]
[363149539,1748599851630,-1557.44,0.00021095,2]
[363149540,1748599851640,-1846.32,0.00021095,2]
[363149541,1748599851649,-430.0,0.00021095,2]
[363149542,1748599851659,-1005.88,0.00021095,2]
[363149543,1748599851669,-781.05,0.00021095,2]
[363149544,1748599851679,-7162.95,0.00021095,2]
[363149545,1748599851688,-430.0,0.00021095,2]
[363149546,1748599851698,-991.03,0.00021095,2]
[363149547,1748599851707,-1880.61,0.00021095,2]
[363149548,1748599851717,-430.0,0.00021095,2]
[363149549,1748599851727,-970.64,0.00021095,2]
[363149550,1748599851736,-539.32696037,0.00021095,2]
[363149551,1748599851746,-430.0,0.00021095,2]
[363149552,1748599851756,-430.0,0.00021095,2]
[363149553,1748599851766,-869.87,0.00021095,2]
[363149554,1748599851778,-430.0,0.00021095,2]
[363149555,1748599851788,-6904.29,0.00021095,2]
[363149556,1748599851798,-2282.62,0.00021095,2]
[363149557,1748599851807,-625.72,0.00021095,2]
[363149558,1748599851817,-430.0,0.00021095,2]
[363149559,1748599851826,-430.0,0.00021095,2]
[363149560,1748599851836,-514.63,0.00021095,2]
[363149561,1748599851846,-802.09,0.00021095,2]
[363149562,1748599851856,-1801.05,0.00021095,2]
[363149563,1748599851865,-430.0,0.00021095,2]
[363149564,1748599851875,-4916.12,0.00021095,2]
[363149565,1748599851884,-657.41,0.00021095,2]
[363149566,1748599851894,-430.0,0.00021095,2]
[363149567,1748599851904,-566.9,0.00021095,2]
[363149568,1748599851913,-430.0,0.00021095,2]
[363149569,1748599851923,-430.0,0.00021095,2]
[363149570,1748599851932,-6162.88,0.00021095,2]
[363149571,1748599851942,-430.0,0.00021095,2]
[363149572,1748599851951,-430.0,0.00021095,2]
[363149573,1748599851961,-625.42,0.00021095,2]
[363149574,1748599851971,-430.0,0.00021095,2]
[363149575,1748599851981,-430.0,0.00021095,2]
[363149576,1748599851992,-430.0,0.00021095,2]
[363149577,1748599852001,-430.0,0.00021095,2]
[363149578,1748599852011,-2321.09,0.00021095,2]
[363149579,1748599852022,-430.0,0.00021095,2]
[363149580,1748599852031,-653.47,0.00021095,2]
[363149581,1748599852041,-646.21,0.00021095,2]
[363149582,1748599852054,-430.0,0.00021095,2]
[363149583,1748599852064,-1153.29,0.00021095,2]
[363149584,1748599852074,-430.0,0.00021095,2]
[363149585,1748599852084,-430.0,0.00021095,2]
[363149586,1748599852093,-887.53,0.00021095,2]
[363149587,1748599852103,-5995.57,0.00021095,2]
[363149588,1748599852113,-1053.86,0.00021095,2]
[363149589,1748599852123,-430.0,0.00021095,2]
[363149590,1748599852132,-430.0,0.00021095,2]
[363149591,1748599852142,-151.0,0.000211,4]
[363149592,1748599852152,-357.7922574,0.00021107,4]
[363149593,1748599852161,-172.01487286,0.00021133,2]
[363149594,1748599852170,-177.27,0.00021191,2]
[363149595,1748599852180,-357.7922574,0.00021279,5]
[363149596,1748599852194,-215.0738,0.00021306,2]
[363149597,1748599852203,-2000.0,0.00021328,2]
[363149598,1748599852213,-430.0,0.00021369,2]
[363149599,1748599852223,-625.44,0.00021369,2]
[363149600,1748599852234,-430.0,0.00021369,2]
[363149601,1748599852244,-439.0,0.00021369,2]
[363149602,1748599852254,-430.0,0.00021369,2]
[363149603,1748599852265,-430.0,0.00021369,2]
[363149604,1748599852275,-430.0,0.00021369,2]
[363149605,1748599852285,-430.0,0.00021369,2]
[363149606,1748599852294,-1350.74,0.00021369,2]
[363149607,1748599852304,-430.0,0.00021369,2]
[363149608,1748599852313,-430.0,0.00021369,2]
[363149609,1748599852323,-430.0,0.00021369,2]
[363149610,1748599852333,-430.0,0.00021369,2]
[363149611,1748599852343,-1255.09,0.00021369,2]
[363149612,1748599852353,-1398.56,0.00021369,2]
[363149613,1748599852362,-430.0,0.00021369,2]
[363149614,1748599852374,-516.63655515,0.00021369,2]
[363149615,1748599852383,-442.67,0.00021369,2]
[363149616,1748599852393,-430.0,0.00021369,2]
[363149617,1748599852403,-453.44,0.00021369,2]
[363149618,1748599852413,-4983.7,0.00021369,2]
[363149619,1748599852423,-907.89,0.00021369,2]
[363149620,1748599852433,-430.0,0.00021369,2]
[363149621,1748599852443,-430.0,0.00021369,2]
[363149622,1748599852454,-6118.79,0.00021369,2]
[363149623,1748599852465,-2375.79,0.00021369,2]
[363149624,1748599852474,-430.0,0.00021369,2]
[363149625,1748599852484,-1557.44,0.00021369,2]
[363149626,1748599852494,-1846.32,0.00021369,2]
[363149627,1748599852504,-430.0,0.00021369,2]
[363149628,1748599852514,-1005.88,0.00021369,2]
[363149629,1748599852527,-781.05,0.00021369,2]
[363149630,1748599852537,-7162.95,0.00021369,2]
[363149631,1748599852546,-430.0,0.00021369,2]
[363149632,1748599852557,-991.03,0.00021369,2]
[363149633,1748599852567,-1880.61,0.00021369,2]
[363149634,1748599852577,-430.0,0.00021369,2]
[363149635,1748599852586,-970.64,0.00021369,2]
[363149636,1748599852595,-430.0,0.00021369,2]
[363149637,1748599852605,-430.0,0.00021369,2]
[363149638,1748599852615,-869.87,0.00021369,2]
[363149639,1748599852625,-430.0,0.00021369,2]
[363149640,1748599852634,-6904.29,0.00021369,2]
[363149641,1748599852644,-2282.62,0.00021369,2]
[363149642,1748599852654,-625.72,0.00021369,2]
[363149643,1748599852664,-430.0,0.00021369,2]
[363149644,1748599852674,-430.0,0.00021369,2]
[363149645,1748599852684,-514.63,0.00021369,2]
[363149646,1748599852694,-802.09,0.00021369,2]
[363149647,1748599852705,-1801.05,0.00021369,2]
[363149648,1748599852716,-430.0,0.00021369,2]
[363149649,1748599852727,-4916.12,0.00021369,2]
[363149650,1748599852736,-657.41,0.00021369,2]
[363149651,1748599852746,-430.0,0.00021369,2]
[363149652,1748599852755,-566.9,0.00021369,2]
[363149653,1748599852765,-430.0,0.00021369,2]
[363149654,1748599852777,-430.0,0.00021369,2]
[363149655,1748599852786,-6162.88,0.00021369,2]
[363149656,1748599852796,-430.0,0.00021369,2]
[363149657,1748599852806,-430.0,0.00021369,2]
[363149658,1748599852815,-625.42,0.00021369,2]
[363149659,1748599852825,-430.0,0.00021369,2]
[363149660,1748599852834,-463.06820166,0.00021369,2]
[363149661,1748599852844,-430.0,0.00021369,2]
[363149662,1748599852854,-294.91013577,0.00021369,2]
[363149663,1748599852864,-2321.09,0.00021369,2]
[363149664,1748599852874,-430.0,0.00021369,2]
[363149665,1748599852885,-653.47,0.00021369,2]
[363149666,1748599852895,-646.21,0.00021369,2]
[363149667,1748599852904,-430.0,0.00021369,2]
[363149668,1748599852914,-1153.29,0.00021369,2]
[363149669,1748599852924,-430.0,0.00021369,2]
[363149670,1748599852934,-430.0,0.00021369,2]
[363149671,1748599852944,-887.53,0.00021369,2]
[363149672,1748599852958,-5995.57,0.00021369,2]
[363149673,1748599852968,-1053.86,0.00021369,2]
[363149674,1748599852978,-430.0,0.00021369,2]
[363149675,1748599852988,-430.0,0.00021369,2]
[363149676,1748599852997,-446.52346101,0.00021409,2]
[363149677,1748599853007,-357.7922574,0.00021452,5]
[363149678,1748599853017,-357.7922574,0.00021624,5]
[363149679,1748599853027,-430.0,0.00021643,2]
[363149680,1748599853037,-625.44,0.00021643,2]
[363149681,1748599853047,-430.0,0.00021643,2]
[363149682,1748599853056,-439.0,0.00021643,2]
[363149683,1748599853066,-430.0,0.00021643,2]
[363149684,1748599853079,-430.0,0.00021643,2]
[363149685,1748599853090,-430.0,0.00021643,2]
[363149686,1748599853099,-430.0,0.00021643,2]
[363149687,1748599853109,-1350.74,0.00021643,2]
[363149688,1748599853120,-430.0,0.00021643,2]
[363149689,1748599853129,-430.0,0.00021643,2]
[363149690,1748599853140,-430.0,0.00021643,2]
[363149691,1748599853150,-430.0,0.00021643,2]
[363149692,1748599853160,-1255.09,0.00021643,2]
[363149693,1748599853170,-1398.56,0.00021643,2]
[363149694,1748599853180,-565.89121644,0.00021643,2]
[363149695,1748599853194,-442.67,0.00021643,2]
[363149696,1748599853204,-430.0,0.00021643,2]
[363149697,1748599853214,-453.44,0.00021643,2]
[363149698,1748599853224,-4983.7,0.00021643,2]
[363149699,1748599853235,-907.89,0.00021643,2]
[363149700,1748599853244,-430.0,0.00021643,2]
[363149701,1748599853254,-430.0,0.00021643,2]
[363149702,1748599853265,-6118.79,0.00021643,2]
[363149703,1748599853277,-2375.79,0.00021643,2]
[363149704,1748599853287,-430.0,0.00021643,2]
[363149705,1748599853297,-1557.44,0.00021643,2]
[363149706,1748599853308,-1846.32,0.00021643,2]
[363149707,1748599853318,-430.0,0.00021643,2]
[363149708,1748599853328,-1005.88,0.00021643,2]
[363149709,1748599853338,-781.05,0.00021643,2]
[363149710,1748599853497,-430.0,0.00021643,2]
[363149711,1748599853507,-7162.95,0.00021643,2]
[363149712,1748599853516,-991.03,0.00021643,2]
[363149713,1748599853526,-1880.61,0.00021643,2]
[363149714,1748599853535,-430.0,0.00021643,2]
[363149715,1748599853545,-970.64,0.00021643,2]
[363149716,1748599853555,-430.0,0.00021643,2]
[363149717,1748599853564,-430.0,0.00021643,2]
[363149718,1748599853574,-869.87,0.00021643,2]
[363149719,1748599853584,-430.0,0.00021643,2]
[363149720,1748599853593,-6904.29,0.00021643,2]
[363149721,1748599853602,-2282.62,0.00021643,2]
[363149722,1748599853612,-625.72,0.00021643,2]
[363149723,1748599853622,-430.0,0.00021643,2]
[363149724,1748599853632,-430.0,0.00021643,2]
[363149725,1748599853641,-514.63,0.00021643,2]
[363149726,1748599853651,-802.09,0.00021643,2]
[363149727,1748599853660,-1801.05,0.00021643,2]
[363149728,1748599853670,-430.0,0.00021643,2]
[363149729,1748599853680,-4916.12,0.00021643,2]
[363149730,1748599853689,-657.41,0.00021643,2]
[363149731,1748599853699,-430.0,0.00021643,2]
[363149732,1748599853709,-566.9,0.00021643,2]
[363149733,1748599853719,-430.0,0.00021643,2]
[363149734,1748599853728,-430.0,0.00021643,2]
[363149735,1748599853738,-6162.88,0.00021643,2]
[363149736,1748599853748,-430.0,0.00021643,2]
[363149737,1748599853758,-430.0,0.00021643,2]
[363149738,1748599853769,-625.42,0.00021643,2]
[363149739,1748599853778,-478.30566186,0.00021643,2]
[363149740,1748599853788,-430.0,0.00021643,2]
[363149741,1748599853798,-2321.09,0.00021643,2]
[363149742,1748599853807,-430.0,0.00021643,2]
[363149743,1748599853817,-653.47,0.00021643,2]
[363149744,1748599853827,-646.21,0.00021643,2]
[363149745,1748599853837,-430.0,0.00021643,2]
[363149746,1748599853847,-1153.29,0.00021643,2]
[363149747,1748599853857,-430.0,0.00021643,2]
[363149748,1748599853867,-189.33692179,0.00021643,2]
[363149749,1748599853876,-887.53,0.00021643,2]
[363149750,1748599853886,-5995.57,0.00021643,2]
[363149751,1748599853896,-1053.86,0.00021643,2]
[363149752,1748599853905,-430.0,0.00021643,2]
[363149753,1748599853915,-430.0,0.00021643,2]
[363149754,1748599853924,-500.0,0.0002166,2]
[363149755,1748599853934,-1998.0,0.00021786,2]
[363149756,1748599853944,-357.7922574,0.00021797,6]
[363149757,1748599853953,-172.01487286,0.00021886,2]
[363149758,1748599853964,-484.01025371,0.00021917,2]
[363149759,1748599853973,-625.44,0.00021917,2]
[363149760,1748599853984,-430.0,0.00021917,2]
[363149761,1748599853993,-439.0,0.00021917,2]
[363149762,1748599854003,-430.0,0.00021917,2]
[363149763,1748599854013,-537.34159638,0.00021917,2]
[363149764,1748599854023,-430.0,0.00021917,2]
[363149765,1748599854034,-430.0,0.00021917,2]
[363149766,1748599854044,-1350.74,0.00021917,2]
[363149767,1748599854054,-430.0,0.00021917,2]
[363149768,1748599854063,-430.0,0.00021917,2]
[363149769,1748599854073,-461.02113522,0.00021917,2]
[363149770,1748599854083,-430.0,0.00021917,2]
[363149771,1748599854093,-1255.09,0.00021917,2]
[363149772,1748599854103,-1398.56,0.00021917,2]
[363149773,1748599854112,-442.67,0.00021917,2]
[363149774,1748599854122,-500.0,0.00021917,2]
[363149775,1748599854131,-430.0,0.00021917,2]
[363149776,1748599854141,-453.44,0.00021917,2]
[363149777,1748599854151,-4983.7,0.00021917,2]
[363149778,1748599854160,-907.89,0.00021917,2]
[363149779,1748599854170,-430.0,0.00021917,2]
[363149780,1748599854181,-430.0,0.00021917,2]
[363149781,1748599854194,-6118.79,0.00021917,2]
[363149782,1748599854204,-2375.79,0.00021917,2]
[363149783,1748599854214,-430.0,0.00021917,2]
[363149784,1748599854223,-1557.44,0.00021917,2]
[363149785,1748599854234,-1846.32,0.00021917,2]
[363149786,1748599854243,-430.0,0.00021917,2]
[363149787,1748599854253,-1005.88,0.00021917,2]
[363149788,1748599854263,-781.05,0.00021917,2]
[363149789,1748599854274,-430.0,0.00021917,2]
[363149790,1748599854284,-7162.95,0.00021917,2]
[363149791,1748599854294,-991.03,0.00021917,2]
[363149792,1748599854303,-1880.61,0.00021917,2]
[363149793,1748599854312,-430.0,0.00021917,2]
[363149794,1748599854322,-970.64,0.00021917,2]
[363149795,1748599854331,-430.0,0.00021917,2]
[363149796,1748599854341,-430.0,0.00021917,2]
[363149797,1748599854350,-869.87,0.00021917,2]
[363149798,1748599854360,-430.0,0.00021917,2]
[363149799,1748599854370,-6904.29,0.00021917,2]
[363149800,1748599854379,-2282.62,0.00021917,2]
[363149801,1748599854389,-625.72,0.00021917,2]
[363149802,1748599854399,-430.0,0.00021917,2]
[363149803,1748599854408,-430.0,0.00021917,2]
[363149804,1748599854418,-514.63,0.00021917,2]
[363149805,1748599854427,-802.09,0.00021917,2]
[363149806,1748599854437,-1801.05,0.00021917,2]
[363149807,1748599854447,-500.0,0.00021917,2]
[363149808,1748599854456,-500.0,0.00021917,2]
[363149809,1748599854466,-500.0,0.00021917,2]
[363149810,1748599854475,-500.0,0.00021917,2]
[363149811,1748599854484,-500.0,0.00021917,2]
[363149812,1748599854494,-396.71207405,0.00021917,2]
[363149813,1748599854504,-430.0,0.00021917,2]
[363149814,1748599854514,-657.41,0.00021917,2]
[363149815,1748599854525,-430.0,0.00021917,2]
[363149816,1748599854535,-4916.12,0.00021917,2]
[363149817,1748599854545,-566.9,0.00021917,2]
[363149818,1748599854555,-430.0,0.00021917,2]
[363149819,1748599854564,-207.92630191,0.00021917,2]
[363149820,1748599854574,-6162.88,0.00021917,2]
[363149821,1748599854583,-430.0,0.00021917,2]
[363149822,1748599854592,-508.59300079,0.00021917,2]
[363149823,1748599854601,-625.42,0.00021917,2]
[363149824,1748599854611,-430.0,0.00021917,2]
[363149825,1748599854620,-2321.09,0.00021917,2]
[363149826,1748599854629,-181.90963624,0.00021917,2]
[363149827,1748599854639,-653.47,0.00021917,2]
[363149828,1748599854648,-646.21,0.00021917,2]
[363149829,1748599854657,-430.0,0.00021917,2]
[363149830,1748599854667,-1153.29,0.00021917,2]
[363149831,1748599854676,-211.87367464,0.00021917,2]
[363149832,1748599854686,-887.53,0.00021917,2]
[363149833,1748599854695,-5995.57,0.00021917,2]
[363149834,1748599854703,-1053.86,0.00021917,2]
[363149835,1748599854711,-430.0,0.00021917,2]
[363149836,1748599854720,-177.75512471,0.00021917,2]
[363149837,1748599854729,-262.19315008,0.00021918,2]
[363149838,1748599854738,-500.0,0.00021918,2]
[363149839,1748599854747,-351.5127149,0.00021918,2]
[363149840,1748599854757,-357.7922574,0.00021969,6]
[363149841,1748599854766,-552.80560704,0.00021973,2]
[363149842,1748599854777,-500.0,0.00021973,2]
[363149843,1748599854786,-500.0,0.00021973,2]
[363149844,1748599854795,-600.0,0.00021973,2]
[363149845,1748599854804,-500.0,0.00021973,2]
[363149846,1748599854814,-1111.03,0.00022,7]
[363149847,1748599854824,-105874.73,0.00022,7]
[363149848,1748599854833,-7769.3,0.00022,2]
[363149849,1748599854842,-51553.13,0.00022,2]
[363149850,1748599854851,-4499.74,0.00022,7]
[363149851,1748599854860,-12663.11115519,0.00022,7]
[363149852,1748599854869,-154.0,0.00022,2]
[363149853,1748599854879,-357.7922574,0.00022141,6]
[363149854,1748599854889,-446.52346101,0.00022185,2]
[363149855,1748599854898,-625.44,0.00022191,2]
[363149856,1748599854908,-430.0,0.00022191,2]
[363149857,1748599854917,-439.0,0.00022191,2]
[363149858,1748599854927,-430.0,0.00022191,2]
[363149859,1748599854936,-430.0,0.00022191,2]
[363149860,1748599854945,-430.0,0.00022191,2]
[363149861,1748599854955,-1350.74,0.00022191,2]
[363149862,1748599854964,-430.0,0.00022191,2]
[363149863,1748599854974,-430.0,0.00022191,2]
[363149864,1748599854983,-430.0,0.00022191,2]
[363149865,1748599854993,-1255.09,0.00022191,2]
[363149866,1748599855002,-1398.56,0.00022191,2]
[363149867,1748599855011,-442.67,0.00022191,2]
[363149868,1748599855022,-430.0,0.00022191,2]
[363149869,1748599855032,-453.44,0.00022191,2]
[363149870,1748599855042,-4983.7,0.00022191,2]
[363149871,1748599855052,-907.89,0.00022191,2]
[363149872,1748599855061,-430.0,0.00022191,2]
[363149873,1748599855072,-375.00071267,0.00022191,2]
[363149874,1748599855081,-6118.79,0.00022191,2]
[363149875,1748599855091,-2375.79,0.00022191,2]
[363149876,1748599855100,-430.0,0.00022191,2]
[363149877,1748599855110,-1846.32,0.00022191,2]
[363149878,1748599855119,-501.19474934,0.00022191,2]
[363149879,1748599855129,-1005.88,0.00022191,2]
[363149880,1748599855138,-781.05,0.00022191,2]
[363149881,1748599855148,-1557.44,0.00022191,2]
[363149882,1748599855157,-430.0,0.00022191,2]
[363149883,1748599855168,-7162.95,0.00022191,2]
[363149884,1748599855178,-991.03,0.00022191,2]
[363149885,1748599855189,-1880.61,0.00022191,2]
[363149886,1748599855199,-460.92079416,0.00022191,2]
[363149887,1748599855208,-970.64,0.00022191,2]
[363149888,1748599855217,-430.0,0.00022191,2]
[363149889,1748599855226,-413.60622999,0.00022191,2]
[363149890,1748599855234,-869.87,0.00022191,2]
[363149891,1748599855244,-430.0,0.00022191,2]
[363149892,1748599855254,-6904.29,0.00022191,2]
[363149893,1748599855266,-2282.62,0.00022191,2]
[363149894,1748599855277,-625.72,0.00022191,2]
[363149895,1748599855286,-430.0,0.00022191,2]
[363149896,1748599855296,-354.45411554,0.00022191,2]